[Event "Early-Titled-Tuesday-Blitz-February-06-2024"]
[Site "Chess.com"]
[Date "2024.02.06"]
[Round "4"]
[White "Keures"]
[Black "banhgiahuy2606"]
[Result "0-1"]
[WhiteElo "2437"]
[BlackElo "2679"]
[TimeControl "180+1"]
[EndTime "8:36:12 PST"]
[Termination "banhgiahuy2606 won by checkmate"]

1. d4 {[%clk 0:03:00.9]} 1... Nf6 {[%clk 0:02:59.7]} 2. c4 {[%clk 0:02:59.1]}
2... g6 {[%clk 0:02:59.3]} 3. Nc3 {[%clk 0:02:57.5]} 3... Bg7 {[%clk 0:02:59.9]}
4. e4 {[%clk 0:02:57]} 4... d6 {[%clk 0:03:00.4]} 5. h3 {[%clk 0:02:54.3]} 5...
O-O {[%clk 0:03:00.3]} 6. Nf3 {[%clk 0:02:54]} 6... e5 {[%clk 0:02:59.6]} 7. d5
{[%clk 0:02:48.2]} 7... a5 {[%clk 0:02:55.7]} 8. g4 {[%clk 0:02:46.9]} 8... Na6
{[%clk 0:02:54]} 9. Be3 {[%clk 0:02:46.5]} 9... Nd7 {[%clk 0:02:52.1]} 10. Be2
{[%clk 0:02:41.2]} 10... Ndc5 {[%clk 0:02:51.5]} 11. a3 {[%clk 0:02:38.3]} 11...
f5 {[%clk 0:02:48.6]} 12. Nd2 {[%clk 0:02:36.4]} 12... f4 {[%clk 0:02:35.9]} 13.
Bxc5 {[%clk 0:02:35.8]} 13... Nxc5 {[%clk 0:02:36.6]} 14. f3 {[%clk 0:02:22.6]}
14... h5 {[%clk 0:02:29.4]} 15. b4 {[%clk 0:02:14.4]} 15... Qh4+ {[%clk
0:02:23.1]} 16. Kf1 {[%clk 0:02:12.8]} 16... axb4 {[%clk 0:02:21.6]} 17. axb4
{[%clk 0:02:05.6]} 17... Rxa1 {[%clk 0:02:21.6]} 18. Qxa1 {[%clk 0:02:06.1]}
18... hxg4 {[%clk 0:02:14.2]} 19. bxc5 {[%clk 0:02:04.9]} 19... gxh3 {[%clk
0:02:14.4]} 20. Qe1 {[%clk 0:01:54.2]} 20... Qg3 {[%clk 0:02:14.3]} 21. Rg1
{[%clk 0:01:31.4]} 21... h2 {[%clk 0:01:58.8]} 22. Rxg3 {[%clk 0:01:26.3]} 22...
h1=Q+ {[%clk 0:01:57.4]} 23. Rg1 {[%clk 0:01:26.3]} 23... Bh3+ {[%clk
0:01:57.8]} 24. Kf2 {[%clk 0:01:18]} 24... Qh2+ {[%clk 0:01:57.9]} 25. Rg2
{[%clk 0:01:10.7]} 25... Qxg2# {[%clk 0:01:57.3]} 0-1

[Event "Early-Titled-Tuesday-Blitz-February-06-2024"]
[Site "Chess.com"]
[Date "2024.02.06"]
[Round "4"]
[White "PabloZarnicki"]
[Black "ChessFighter1975"]
[Result "1-0"]
[WhiteElo "2619"]
[BlackElo "2427"]
[TimeControl "180+1"]
[EndTime "8:36:29 PST"]
[Termination "PabloZarnicki won by resignation"]

1. e4 {[%clk 0:03:00.9]} 1... d6 {[%clk 0:03:00.5]} 2. d4 {[%clk 0:03:01]} 2...
Nf6 {[%clk 0:03:01.3]} 3. Nc3 {[%clk 0:03:01.8]} 3... Nbd7 {[%clk 0:03:01.9]} 4.
Nf3 {[%clk 0:02:59.8]} 4... e5 {[%clk 0:03:02.5]} 5. Bc4 {[%clk 0:02:59.7]} 5...
Be7 {[%clk 0:03:02.3]} 6. O-O {[%clk 0:03:00.3]} 6... c6 {[%clk 0:03:02.4]} 7.
a4 {[%clk 0:02:59.6]} 7... a5 {[%clk 0:03:02.4]} 8. Re1 {[%clk 0:02:59.6]} 8...
Qc7 {[%clk 0:03:01.5]} 9. Ba2 {[%clk 0:02:59.4]} 9... h6 {[%clk 0:03:01.5]} 10.
dxe5 {[%clk 0:02:58.8]} 10... dxe5 {[%clk 0:03:01.6]} 11. Nh4 {[%clk 0:02:58.9]}
11... g6 {[%clk 0:03:01.6]} 12. Qf3 {[%clk 0:02:45.4]} 12... Nc5 {[%clk
0:02:49.5]} 13. h3 {[%clk 0:02:40.1]} 13... Be6 {[%clk 0:02:44.9]} 14. Be3
{[%clk 0:02:33.5]} 14... Bxa2 {[%clk 0:02:41.4]} 15. Bxc5 {[%clk 0:02:33.4]}
15... Be6 {[%clk 0:02:35.5]} 16. Bxe7 {[%clk 0:02:28.9]} 16... Qxe7 {[%clk
0:02:35.4]} 17. Qg3 {[%clk 0:02:23.3]} 17... Bc4 {[%clk 0:02:22.7]} 18. Nf3
{[%clk 0:02:10.2]} 18... Nd7 {[%clk 0:02:16.4]} 19. b3 {[%clk 0:02:10.5]} 19...
Be6 {[%clk 0:02:15.3]} 20. Nxe5 {[%clk 0:02:07.6]} 20... Nxe5 {[%clk 0:02:08.4]}
21. Qxe5 {[%clk 0:02:06.6]} 21... O-O {[%clk 0:02:08.3]} 22. Nd5 {[%clk
0:02:00.8]} 22... cxd5 {[%clk 0:01:56.4]} 23. exd5 {[%clk 0:02:01.7]} 23... Rfe8
{[%clk 0:01:50.5]} 24. dxe6 {[%clk 0:01:57.6]} 24... Qxe6 {[%clk 0:01:50.9]} 25.
Qxe6 {[%clk 0:01:50.3]} 25... Rxe6 {[%clk 0:01:51.8]} 26. Rxe6 {[%clk
0:01:50.1]} 26... fxe6 {[%clk 0:01:52.7]} 27. Re1 {[%clk 0:01:48.1]} 27... Kf7
{[%clk 0:01:52.2]} 28. Re5 {[%clk 0:01:48.2]} 28... b6 {[%clk 0:01:38.7]} 29.
Rb5 {[%clk 0:01:46.5]} 29... Rb8 {[%clk 0:01:37.8]} 30. c4 {[%clk 0:01:46.3]}
30... Ke7 {[%clk 0:01:34.1]} 31. c5 {[%clk 0:01:44.9]} 31... Rd8 {[%clk
0:01:27.9]} 32. cxb6 {[%clk 0:01:44]} 1-0

[Event "Early-Titled-Tuesday-Blitz-February-06-2024"]
[Site "Chess.com"]
[Date "2024.02.06"]
[Round "4"]
[White "KubaGepard"]
[Black "AlexeiShirov"]
[Result "0-1"]
[WhiteElo "2555"]
[BlackElo "2778"]
[TimeControl "180+1"]
[EndTime "8:36:33 PST"]
[Termination "AlexeiShirov won by resignation"]

1. d4 {[%clk 0:03:00.9]} 1... d5 {[%clk 0:02:59.7]} 2. Nf3 {[%clk 0:03:00.5]}
2... Nf6 {[%clk 0:02:59]} 3. Bf4 {[%clk 0:02:59.1]} 3... c5 {[%clk 0:02:58.3]}
4. e3 {[%clk 0:02:59.5]} 4... Nc6 {[%clk 0:02:57.9]} 5. Nbd2 {[%clk 0:03:00.1]}
5... Qb6 {[%clk 0:02:57.9]} 6. dxc5 {[%clk 0:02:59.7]} 6... Qxb2 {[%clk
0:02:57.8]} 7. Rb1 {[%clk 0:03:00]} 7... Qc3 {[%clk 0:02:57.7]} 8. Bb5 {[%clk
0:02:59.6]} 8... g6 {[%clk 0:02:57.4]} 9. e4 {[%clk 0:02:58.9]} 9... dxe4 {[%clk
0:02:53.2]} 10. Be5 {[%clk 0:02:58.5]} 10... Qa5 {[%clk 0:02:48.6]} 11. O-O
{[%clk 0:02:27.8]} 11... exf3 {[%clk 0:02:47.7]} 12. Qxf3 {[%clk 0:02:26.4]}
12... Qxb5 {[%clk 0:02:47.4]} 13. Bxf6 {[%clk 0:01:58.9]} 13... Qxf1+ {[%clk
0:02:46.4]} 14. Rxf1 {[%clk 0:01:55.7]} 14... exf6 {[%clk 0:02:44.9]} 15. Qxf6
{[%clk 0:01:55.3]} 15... Rg8 {[%clk 0:02:43.7]} 16. Re1+ {[%clk 0:01:48]} 16...
Be7 {[%clk 0:02:39.8]} 17. Nc4 {[%clk 0:01:36.8]} 17... Be6 {[%clk 0:02:36.8]}
18. Nd6+ {[%clk 0:01:21.7]} 18... Kd7 {[%clk 0:02:24.3]} 19. Qc3 {[%clk
0:01:20.1]} 19... Bxd6 {[%clk 0:02:21.8]} 20. Rd1 {[%clk 0:01:17.9]} 20... Rad8
{[%clk 0:02:16]} 21. cxd6 {[%clk 0:01:17.7]} 21... Rc8 {[%clk 0:02:12]} 22. h3
{[%clk 0:01:15.3]} 22... b6 {[%clk 0:02:08.9]} 23. Kh2 {[%clk 0:01:12.1]} 23...
h5 {[%clk 0:02:05.2]} 24. a3 {[%clk 0:01:10.6]} 24... Na5 {[%clk 0:02:03.1]} 25.
Qf6 {[%clk 0:01:09.8]} 25... Rge8 {[%clk 0:02:02.5]} 26. Rd2 {[%clk 0:01:09.4]}
26... Nc4 {[%clk 0:02:01.4]} 27. Rd4 {[%clk 0:01:03.7]} 27... Rc6 {[%clk
0:02:00.5]} 28. g4 {[%clk 0:01:01]} 28... hxg4 {[%clk 0:01:59.6]} 29. hxg4
{[%clk 0:01:01.9]} 29... Rxd6 {[%clk 0:01:59.2]} 30. Rxd6+ {[%clk 0:01:00.5]}
30... Nxd6 {[%clk 0:01:58.4]} 31. Kg3 {[%clk 0:01:01]} 0-1

[Event "Early-Titled-Tuesday-Blitz-February-06-2024"]
[Site "Chess.com"]
[Date "2024.02.06"]
[Round "4"]
[White "Teidi96"]
[Black "Levanzovsky"]
[Result "0-1"]
[WhiteElo "2318"]
[BlackElo "2512"]
[TimeControl "180+1"]
[EndTime "8:36:34 PST"]
[Termination "Levanzovsky won by checkmate"]

1. Nf3 {[%clk 0:03:00.9]} 1... Nf6 {[%clk 0:02:58.6]} 2. b3 {[%clk 0:03:01.6]}
2... b6 {[%clk 0:02:54.1]} 3. Bb2 {[%clk 0:03:02.5]} 3... Bb7 {[%clk 0:02:54.6]}
4. e3 {[%clk 0:02:59.8]} 4... c5 {[%clk 0:02:54.1]} 5. Be2 {[%clk 0:03:00.2]}
5... e6 {[%clk 0:02:53.1]} 6. O-O {[%clk 0:03:00.4]} 6... d5 {[%clk 0:02:53]} 7.
Ne5 {[%clk 0:03:00.2]} 7... Nbd7 {[%clk 0:02:48.4]} 8. f4 {[%clk 0:02:59.3]}
8... Nxe5 {[%clk 0:02:46.2]} 9. fxe5 {[%clk 0:03:00.2]} 9... Nd7 {[%clk
0:02:45.4]} 10. Bb5 {[%clk 0:02:57.7]} 10... a6 {[%clk 0:02:44.5]} 11. Bxd7+
{[%clk 0:02:57.5]} 11... Qxd7 {[%clk 0:02:45]} 12. d4 {[%clk 0:02:55.5]} 12...
Be7 {[%clk 0:02:35.9]} 13. Nd2 {[%clk 0:02:55]} 13... O-O {[%clk 0:02:32.5]} 14.
Qh5 {[%clk 0:02:54.5]} 14... f6 {[%clk 0:02:27.1]} 15. Rf3 {[%clk 0:02:49.7]}
15... fxe5 {[%clk 0:02:24.7]} 16. Rh3 {[%clk 0:02:48]} 16... h6 {[%clk 0:02:24]}
17. dxe5 {[%clk 0:02:43.5]} 17... Rf5 {[%clk 0:02:22.1]} 18. Qg6 {[%clk
0:02:41.8]} 18... Rg5 {[%clk 0:02:04.6]} 19. Qd3 {[%clk 0:02:41.6]} 19... Rf8
{[%clk 0:01:58.9]} 20. Nf3 {[%clk 0:02:35.9]} 20... Rg4 {[%clk 0:01:53.8]} 21.
Rf1 {[%clk 0:02:36.3]} 21... Qe8 {[%clk 0:01:45.5]} 22. Rg3 {[%clk 0:02:32.3]}
22... Rxg3 {[%clk 0:01:44.9]} 23. hxg3 {[%clk 0:02:33.2]} 23... Qh5 {[%clk
0:01:39.2]} 24. c4 {[%clk 0:02:22.6]} 24... Qg4 {[%clk 0:01:37.2]} 25. Kh2
{[%clk 0:02:15.9]} 25... Rf5 {[%clk 0:01:35]} 26. e4 {[%clk 0:02:11.1]} 26...
dxe4 {[%clk 0:01:27.3]} 27. Qd7 {[%clk 0:02:10.2]} 27... exf3 {[%clk 0:01:23.5]}
28. Qxb7 {[%clk 0:02:00]} 28... f2 {[%clk 0:01:10.4]} 29. Rxf2 {[%clk
0:01:46.4]} 29... Qh5+ {[%clk 0:01:10.2]} 30. Kg1 {[%clk 0:01:45.9]} 30... Qd1+
{[%clk 0:01:10.2]} 31. Kh2 {[%clk 0:01:46.2]} 31... Rh5# {[%clk 0:01:10.3]} 0-1

[Event "Early-Titled-Tuesday-Blitz-February-06-2024"]
[Site "Chess.com"]
[Date "2024.02.06"]
[Round "4"]
[White "lluiss"]
[Black "CFalcons8"]
[Result "0-1"]
[WhiteElo "2137"]
[BlackElo "2321"]
[TimeControl "180+1"]
[EndTime "8:36:52 PST"]
[Termination "CFalcons8 won by resignation"]

1. c4 {[%clk 0:02:55]} 1... c5 {[%clk 0:02:59.4]} 2. Nc3 {[%clk 0:02:54]} 2...
Nc6 {[%clk 0:03:00]} 3. g3 {[%clk 0:02:52.8]} 3... g6 {[%clk 0:03:00.7]} 4. Bg2
{[%clk 0:02:52.7]} 4... Bg7 {[%clk 0:03:01.3]} 5. Nf3 {[%clk 0:02:53.2]} 5... d6
{[%clk 0:02:59.9]} 6. O-O {[%clk 0:02:47.7]} 6... e6 {[%clk 0:03:00.5]} 7. d3
{[%clk 0:02:44]} 7... Nge7 {[%clk 0:03:00.8]} 8. Bd2 {[%clk 0:02:44.3]} 8... O-O
{[%clk 0:03:00.7]} 9. a3 {[%clk 0:02:44.5]} 9... a6 {[%clk 0:03:01.1]} 10. Rb1
{[%clk 0:02:44.5]} 10... Rb8 {[%clk 0:03:01.8]} 11. b4 {[%clk 0:02:44.6]} 11...
cxb4 {[%clk 0:03:02.7]} 12. axb4 {[%clk 0:02:44.7]} 12... b5 {[%clk 0:03:03.6]}
13. Ng5 {[%clk 0:02:18.6]} 13... bxc4 {[%clk 0:03:00]} 14. dxc4 {[%clk
0:02:11.5]} 14... Rxb4 {[%clk 0:02:59.9]} 15. Rxb4 {[%clk 0:02:08.6]} 15... Nxb4
{[%clk 0:03:00.8]} 16. Qa4 {[%clk 0:02:03.1]} 16... a5 {[%clk 0:02:56.2]} 17.
Nb5 {[%clk 0:01:55.7]} 17... d5 {[%clk 0:02:54.1]} 18. cxd5 {[%clk 0:01:35.6]}
18... Nexd5 {[%clk 0:02:52.8]} 19. e4 {[%clk 0:01:32.1]} 19... Nb6 {[%clk
0:02:47.2]} 20. Qxa5 {[%clk 0:01:31.1]} 20... Qxd2 {[%clk 0:02:46.7]} 21. Qxb6
{[%clk 0:01:30.3]} 21... Qxg5 {[%clk 0:02:46.8]} 22. Nd6 {[%clk 0:01:22.4]}
22... Nd3 {[%clk 0:02:42.7]} 23. Nxc8 {[%clk 0:01:12.2]} 23... Rxc8 {[%clk
0:02:43.6]} 24. Qa6 {[%clk 0:01:12.7]} 24... Rd8 {[%clk 0:02:43.1]} 25. Rd1
{[%clk 0:00:47.9]} 25... Nc5 {[%clk 0:02:42.8]} 26. Rxd8+ {[%clk 0:00:47.3]}
26... Qxd8 {[%clk 0:02:43.7]} 27. Qe2 {[%clk 0:00:45.1]} 27... Nb3 {[%clk
0:02:43]} 28. h3 {[%clk 0:00:39.3]} 28... h5 {[%clk 0:02:42.5]} 29. Kh2 {[%clk
0:00:36.5]} 29... Nd4 {[%clk 0:02:42.3]} 30. Qe3 {[%clk 0:00:31.5]} 30... Qc7
{[%clk 0:02:40.6]} 31. h4 {[%clk 0:00:22.1]} 31... e5 {[%clk 0:02:38.8]} 32. Bf1
{[%clk 0:00:16.6]} 32... Kh7 {[%clk 0:02:39]} 33. Bd3 {[%clk 0:00:15.5]} 33...
Bh6 {[%clk 0:02:39.2]} 34. Qe1 {[%clk 0:00:13.7]} 34... Nf3+ {[%clk 0:02:39.4]}
0-1

[Event "Early-Titled-Tuesday-Blitz-February-06-2024"]
[Site "Chess.com"]
[Date "2024.02.06"]
[Round "4"]
[White "CFN_Good_Evening"]
[Black "volkanyirik"]
[Result "1-0"]
[WhiteElo "2002"]
[BlackElo "2385"]
[TimeControl "180+1"]
[EndTime "8:36:57 PST"]
[Termination "CFN_Good_Evening won by resignation"]

1. e4 {[%clk 0:02:59.8]} 1... c5 {[%clk 0:02:59.2]} 2. c3 {[%clk 0:02:59.7]}
2... d5 {[%clk 0:02:59]} 3. exd5 {[%clk 0:02:59.8]} 3... Qxd5 {[%clk 0:02:59.9]}
4. d4 {[%clk 0:03:00.5]} 4... cxd4 {[%clk 0:03:00.5]} 5. cxd4 {[%clk 0:03:01.4]}
5... e5 {[%clk 0:03:01]} 6. Nc3 {[%clk 0:02:43.1]} 6... Bb4 {[%clk 0:02:58.3]}
7. dxe5 {[%clk 0:02:32.3]} 7... Qxe5+ {[%clk 0:02:59.2]} 8. Be2 {[%clk 0:02:33]}
8... Nf6 {[%clk 0:02:57.3]} 9. Nf3 {[%clk 0:02:31.9]} 9... Qc7 {[%clk
0:02:57.6]} 10. O-O {[%clk 0:02:31.2]} 10... O-O {[%clk 0:02:57.6]} 11. Bg5
{[%clk 0:02:27.4]} 11... Rd8 {[%clk 0:02:54.8]} 12. Qb3 {[%clk 0:02:26.3]} 12...
Be7 {[%clk 0:02:54]} 13. Nb5 {[%clk 0:02:22.8]} 13... Qb6 {[%clk 0:02:48.1]} 14.
Be3 {[%clk 0:02:20.8]} 14... Qa5 {[%clk 0:02:47]} 15. Ng5 {[%clk 0:02:17.3]}
15... Rf8 {[%clk 0:02:41.3]} 16. Bc4 {[%clk 0:02:14.4]} 16... h6 {[%clk
0:02:29.3]} 17. Nxf7 {[%clk 0:02:12.6]} 17... Kh7 {[%clk 0:02:28.8]} 18. Bd3+
{[%clk 0:02:03.1]} 18... g6 {[%clk 0:02:25.7]} 19. Ne5 {[%clk 0:02:03.7]} 19...
Bf5 {[%clk 0:02:22]} 20. Bxf5 {[%clk 0:01:56.4]} 20... gxf5 {[%clk 0:02:20.8]}
21. Nc4 {[%clk 0:01:56.3]} 21... Qd8 {[%clk 0:02:13.3]} 22. Rfd1 {[%clk
0:01:55.4]} 22... Qc8 {[%clk 0:02:01.8]} 23. Nxa7 {[%clk 0:01:51]} 23... Rxa7
{[%clk 0:01:56.8]} 24. Bxa7 {[%clk 0:01:50.5]} 24... Nc6 {[%clk 0:01:57.7]} 25.
Be3 {[%clk 0:01:45.5]} 25... Rg8 {[%clk 0:01:53.4]} 26. Nd6 {[%clk 0:01:32.2]}
26... Qc7 {[%clk 0:01:23.6]} 27. Nxf5 {[%clk 0:01:28.3]} 27... Bf8 {[%clk
0:01:22.8]} 28. Bb6 {[%clk 0:01:22.4]} 28... Qf4 {[%clk 0:01:22]} 29. Qf7+
{[%clk 0:01:18]} 29... Kh8 {[%clk 0:01:21.7]} 30. Qxf6+ {[%clk 0:01:17]} 1-0

[Event "Early-Titled-Tuesday-Blitz-February-06-2024"]
[Site "Chess.com"]
[Date "2024.02.06"]
[Round "4"]
[White "Andrey_Klymchuk"]
[Black "Smiechu"]
[Result "1-0"]
[WhiteElo "2759"]
[BlackElo "2422"]
[TimeControl "180+1"]
[EndTime "8:37:10 PST"]
[Termination "Andrey_Klymchuk won by resignation"]

1. e4 {[%clk 0:03:00.9]} 1... c5 {[%clk 0:02:51.7]} 2. d4 {[%clk 0:03:00.3]}
2... cxd4 {[%clk 0:02:50.8]} 3. Qxd4 {[%clk 0:03:01.2]} 3... Nc6 {[%clk
0:02:50.2]} 4. Qd3 {[%clk 0:03:01.3]} 4... g6 {[%clk 0:02:50.2]} 5. Nc3 {[%clk
0:03:01.2]} 5... Bg7 {[%clk 0:02:50.5]} 6. Nf3 {[%clk 0:03:01.8]} 6... d6 {[%clk
0:02:49.4]} 7. Be2 {[%clk 0:03:02]} 7... Nf6 {[%clk 0:02:48.7]} 8. O-O {[%clk
0:03:02.1]} 8... O-O {[%clk 0:02:48.3]} 9. h3 {[%clk 0:03:01.2]} 9... Bd7 {[%clk
0:02:45.3]} 10. Re1 {[%clk 0:03:01.3]} 10... Rc8 {[%clk 0:02:45]} 11. Bf1 {[%clk
0:03:00.5]} 11... Qa5 {[%clk 0:02:32.4]} 12. a3 {[%clk 0:02:50.7]} 12... Ne5
{[%clk 0:02:21.1]} 13. Nxe5 {[%clk 0:02:50]} 13... Qxe5 {[%clk 0:02:21]} 14. Be3
{[%clk 0:02:45.8]} 14... a6 {[%clk 0:02:16.5]} 15. Bd4 {[%clk 0:02:40.5]} 15...
Qa5 {[%clk 0:02:15.8]} 16. e5 {[%clk 0:02:13.8]} 16... dxe5 {[%clk 0:02:13.5]}
17. Rxe5 {[%clk 0:02:11.4]} 17... Qd8 {[%clk 0:02:07.5]} 18. Rae1 {[%clk
0:02:09.2]} 18... Bf5 {[%clk 0:02:03.8]} 19. Qe3 {[%clk 0:02:03.6]} 19... e6
{[%clk 0:01:54.6]} 20. Rd1 {[%clk 0:01:39.2]} 20... Qc7 {[%clk 0:01:25.6]} 21.
Rd2 {[%clk 0:01:34.3]} 21... Rfd8 {[%clk 0:01:24.9]} 22. Bb6 {[%clk 0:01:30.2]}
22... Nd5 {[%clk 0:01:13.7]} 23. Rexd5 {[%clk 0:01:29.7]} 23... Rxd5 {[%clk
0:00:50.1]} 24. Bxc7 {[%clk 0:01:25.5]} 24... Bxc3 {[%clk 0:00:46.2]} 1-0

[Event "Early-Titled-Tuesday-Blitz-February-06-2024"]
[Site "Chess.com"]
[Date "2024.02.06"]
[Round "4"]
[White "Shivagami"]
[Black "ploxoi"]
[Result "0-1"]
[WhiteElo "2215"]
[BlackElo "2462"]
[TimeControl "180+1"]
[EndTime "8:37:13 PST"]
[Termination "ploxoi won by resignation"]

1. d4 {[%clk 0:02:57.8]} 1... e6 {[%clk 0:02:59]} 2. c4 {[%clk 0:02:56.9]} 2...
d5 {[%clk 0:02:57.8]} 3. Nc3 {[%clk 0:02:56.2]} 3... c6 {[%clk 0:02:56.6]} 4.
cxd5 {[%clk 0:02:49.1]} 4... exd5 {[%clk 0:02:55.4]} 5. Nf3 {[%clk 0:02:41.9]}
5... Bd6 {[%clk 0:02:55.1]} 6. e4 {[%clk 0:02:36.8]} 6... dxe4 {[%clk
0:02:53.3]} 7. Nxe4 {[%clk 0:02:37.3]} 7... Nf6 {[%clk 0:02:50.9]} 8. Bg5 {[%clk
0:02:26.2]} 8... Be7 {[%clk 0:02:48]} 9. Ng3 {[%clk 0:02:17.5]} 9... h6 {[%clk
0:02:46]} 10. Bf4 {[%clk 0:02:12]} 10... O-O {[%clk 0:02:43.4]} 11. Bd3 {[%clk
0:02:09.1]} 11... Nbd7 {[%clk 0:02:35.1]} 12. O-O {[%clk 0:02:07.3]} 12... Nd5
{[%clk 0:02:34]} 13. Bd2 {[%clk 0:02:05.9]} 13... N7f6 {[%clk 0:02:33.8]} 14.
Ne5 {[%clk 0:02:02.3]} 14... Re8 {[%clk 0:02:21.1]} 15. Qf3 {[%clk 0:02:01.3]}
15... Bd6 {[%clk 0:02:18.4]} 16. Rfe1 {[%clk 0:01:56.4]} 16... Qc7 {[%clk
0:02:12.7]} 17. Nf5 {[%clk 0:01:15.7]} 17... Bxe5 {[%clk 0:02:07.7]} 18. dxe5
{[%clk 0:01:12.2]} 18... Rxe5 {[%clk 0:02:01.6]} 19. Rxe5 {[%clk 0:01:04.6]}
19... Qxe5 {[%clk 0:02:02.5]} 20. Re1 {[%clk 0:01:02.9]} 20... Qxb2 {[%clk
0:02:01.9]} 21. Bxh6 {[%clk 0:00:22.5]} 21... Bxf5 {[%clk 0:02:00.6]} 22. Bc1
{[%clk 0:00:19]} 22... Qc3 {[%clk 0:01:57.1]} 0-1

[Event "Early-Titled-Tuesday-Blitz-February-06-2024"]
[Site "Chess.com"]
[Date "2024.02.06"]
[Round "4"]
[White "Rosh1610"]
[Black "Omranalhosani21"]
[Result "0-1"]
[WhiteElo "2355"]
[BlackElo "2512"]
[TimeControl "180+1"]
[EndTime "8:37:18 PST"]
[Termination "Omranalhosani21 won by resignation"]

1. e3 {[%clk 0:02:56.9]} 1... e5 {[%clk 0:02:55.1]} 2. d4 {[%clk 0:02:57.1]}
2... exd4 {[%clk 0:02:54.5]} 3. exd4 {[%clk 0:02:58]} 3... d5 {[%clk 0:02:55.2]}
4. Nf3 {[%clk 0:02:57.4]} 4... Nf6 {[%clk 0:02:56.1]} 5. Bd3 {[%clk 0:02:57.3]}
5... Be7 {[%clk 0:02:57]} 6. O-O {[%clk 0:02:57.8]} 6... O-O {[%clk 0:02:57.9]}
7. Bf4 {[%clk 0:02:58.4]} 7... Re8 {[%clk 0:02:58.8]} 8. Nbd2 {[%clk 0:02:58.3]}
8... Bf8 {[%clk 0:02:59.7]} 9. c3 {[%clk 0:02:58.7]} 9... c6 {[%clk 0:03:00.2]}
10. Qc2 {[%clk 0:02:59]} 10... h6 {[%clk 0:02:58.9]} 11. Rae1 {[%clk 0:02:58.7]}
11... Be6 {[%clk 0:02:48.7]} 12. Ne5 {[%clk 0:02:57.3]} 12... Nbd7 {[%clk
0:02:47.9]} 13. Bg3 {[%clk 0:02:57.4]} 13... Nxe5 {[%clk 0:02:46]} 14. dxe5
{[%clk 0:02:57.3]} 14... Nh5 {[%clk 0:02:45.5]} 15. f4 {[%clk 0:02:09.8]} 15...
Nxg3 {[%clk 0:02:43.8]} 16. hxg3 {[%clk 0:02:10.7]} 16... Bg4 {[%clk 0:02:38.6]}
17. Bf5 {[%clk 0:02:05.7]} 17... Bxf5 {[%clk 0:02:35.1]} 18. Qxf5 {[%clk
0:02:06.1]} 18... Qb6+ {[%clk 0:02:36]} 19. Kh2 {[%clk 0:02:03.8]} 19... Qxb2
{[%clk 0:02:36.9]} 20. Nf3 {[%clk 0:02:03.2]} 20... Qxc3 {[%clk 0:02:34.6]} 21.
Qg4 {[%clk 0:02:03.3]} 21... Qc4 {[%clk 0:02:30.6]} 22. Rc1 {[%clk 0:02:03.2]}
22... Qa4 {[%clk 0:02:29.3]} 23. Rfd1 {[%clk 0:01:59.3]} 23... Rad8 {[%clk
0:02:25.5]} 24. Rd4 {[%clk 0:01:58.8]} 24... Qa3 {[%clk 0:02:25.1]} 25. Rc2
{[%clk 0:01:58]} 25... c5 {[%clk 0:02:23.9]} 26. Rdd2 {[%clk 0:01:53.2]} 26...
d4 {[%clk 0:02:21.4]} 27. f5 {[%clk 0:01:53]} 27... d3 {[%clk 0:02:21.6]} 28.
Rc4 {[%clk 0:01:52.3]} 28... b5 {[%clk 0:02:18.1]} 29. Rf4 {[%clk 0:01:48.3]}
29... c4 {[%clk 0:02:17.5]} 30. f6 {[%clk 0:01:48]} 30... g6 {[%clk 0:02:17.7]}
31. Nh4 {[%clk 0:01:48.1]} 31... Rxe5 {[%clk 0:02:14.4]} 32. Rf5 {[%clk
0:01:27.5]} 32... Rxf5 {[%clk 0:02:04.4]} 33. Nxf5 {[%clk 0:01:28.4]} 33... Rd5
{[%clk 0:02:04.2]} 34. Rf2 {[%clk 0:01:27.1]} 34... d2 {[%clk 0:01:58]} 35. Ne3
{[%clk 0:00:40.8]} 0-1

[Event "Early-Titled-Tuesday-Blitz-February-06-2024"]
[Site "Chess.com"]
[Date "2024.02.06"]
[Round "4"]
[White "Yerlan-Ra"]
[Black "RianKapriaga"]
[Result "1-0"]
[WhiteElo "2483"]
[BlackElo "2271"]
[TimeControl "180+1"]
[EndTime "8:37:20 PST"]
[Termination "Yerlan-Ra won on time"]

1. e4 {[%clk 0:02:59.2]} 1... c6 {[%clk 0:02:59.4]} 2. d4 {[%clk 0:02:59.1]}
2... d5 {[%clk 0:03:00.3]} 3. e5 {[%clk 0:02:58.9]} 3... Bf5 {[%clk 0:02:59.2]}
4. c4 {[%clk 0:02:58.7]} 4... e6 {[%clk 0:02:58.8]} 5. Nc3 {[%clk 0:02:58.9]}
5... Nd7 {[%clk 0:02:57.8]} 6. cxd5 {[%clk 0:02:58.3]} 6... cxd5 {[%clk
0:02:55.6]} 7. Nge2 {[%clk 0:02:59.2]} 7... h6 {[%clk 0:02:52.6]} 8. Ng3 {[%clk
0:02:59.6]} 8... Bh7 {[%clk 0:02:51.9]} 9. Bd3 {[%clk 0:03:00.5]} 9... Bxd3
{[%clk 0:02:49.6]} 10. Qxd3 {[%clk 0:03:01.4]} 10... Ne7 {[%clk 0:02:48.8]} 11.
O-O {[%clk 0:03:01.8]} 11... Nc6 {[%clk 0:02:48]} 12. Be3 {[%clk 0:02:53.8]}
12... Be7 {[%clk 0:02:44.8]} 13. f4 {[%clk 0:02:54.2]} 13... g6 {[%clk
0:02:41.8]} 14. f5 {[%clk 0:02:54.5]} 14... gxf5 {[%clk 0:02:39.5]} 15. Nxf5
{[%clk 0:02:55.4]} 15... exf5 {[%clk 0:02:23.9]} 16. Qxf5 {[%clk 0:02:56.3]}
16... Qa5 {[%clk 0:02:05.1]} 17. Qxf7+ {[%clk 0:02:48.2]} 17... Kd8 {[%clk
0:02:04.1]} 18. Nxd5 {[%clk 0:02:48.7]} 18... Rf8 {[%clk 0:01:46.7]} 19. Qe6
{[%clk 0:02:48.2]} 19... Re8 {[%clk 0:01:12.7]} 20. Rf7 {[%clk 0:02:29.5]} 20...
Qa6 {[%clk 0:00:54.5]} 21. Bxh6 {[%clk 0:02:18.9]} 21... Rc8 {[%clk 0:00:38.8]}
22. Bg5 {[%clk 0:02:14.7]} 22... Nf8 {[%clk 0:00:19.5]} 23. Qd6+ {[%clk
0:02:08.1]} 23... Nd7 {[%clk 0:00:18.9]} 24. Rxe7 {[%clk 0:02:05.4]} 24... Nxe7
{[%clk 0:00:19.8]} 25. Bxe7+ {[%clk 0:02:05.6]} 1-0